fUSD/lending_fUSD_20240730
["ID","MTS","AMOUNT","RATE_DAILY","PERIOD"]
[333690663,1722358496295,411.4424571,8.84e-05,2]
[333690664,1722358497625,1328.67863158,8.84e-05,2]
[333690665,1722358499524,593.15470241,8.84e-05,2]
[333690666,1722358512164,129.54676003,8.84e-05,2]
[333690667,1722358512193,178.08187281,8.84e-05,2]
[333690669,1722358555632,654.57547064,8.84e-05,2]
[333690670,1722358601339,256.35719403,8.84e-05,2]
[333690671,1722358683845,155.0,8.84e-05,2]
[333690672,1722358701339,155.0,8.84e-05,2]
[333690673,1722358817354,155.0,8.84e-05,2]
[333690674,1722358901345,155.0,8.84e-05,2]
[333690675,1722358946869,372.98,8.457e-05,2]
[333690676,1722359015371,155.0,8.84e-05,2]
[333690677,1722359031343,155.0,8.457e-05,2]
[333690684,1722359152362,155.0,8.457e-05,2]
[333690685,1722359218569,155.17684879,8.457e-05,2]
[333690686,1722359231416,155.0,8.457e-05,2]
[333690688,1722359336175,298.14316419,8.457e-05,2]
[333690692,1722359350274,364.83757329,8.457e-05,2]
[333690693,1722359357211,6479.84787625,8.457e-05,2]
[333690694,1722359357233,8290.53943448,8.457e-05,2]
[333690696,1722359380081,364.83757329,8.457e-05,2]
[333690700,1722359402405,150.0,8.457e-05,2]
[333690701,1722359402870,150.0,8.457e-05,2]
[333690702,1722359403084,150.36666751,8.457e-05,2]
[333690707,1722359432200,-716.59388063,9.788e-05,2]
[333690708,1722359432212,-285.47545849,9.788e-05,2]
[333690709,1722359432221,-150.0,9.888e-05,2]
[333690710,1722359432231,-300.0,9.999e-05,2]
[333690711,1722359432240,-1195.68472124,0.0001,2]
[333690712,1722359432250,-280.56667432,0.0001,2]
[333690713,1722359432262,-2005.57355483,0.0001,2]
[333690714,1722359432303,-3641.40814063,0.0001,2]
[333690715,1722359432314,-322.91174239,0.0001,2]
[333690716,1722359432327,-746.44510063,0.0001,2]
[333690718,1722359432339,-43733.77909607,0.0001,2]
[333690720,1722359432349,-1507.26682709,0.0001,2]
[333690721,1722359432360,-608.42001,0.0001,2]
[333690724,1722359432383,-1650.99,0.0001,2]
[333690726,1722359432395,-581.06799919,0.0001,2]
[333690727,1722359432406,-11431.23894826,0.0001,2]
[333690728,1722359432417,-10294.64718535,0.0001,2]
[333690729,1722359432427,-522.21751293,0.00010251,2]
[333690730,1722359432436,-203.24627188,0.00010251,2]
[333690731,1722359432445,-525.98551091,0.00010251,2]
[333690732,1722359432454,-947.63704702,0.00010251,2]
[333690733,1722359432464,-14859.1,0.00010271,2]
[333690734,1722359432474,-1000.0,0.00010556,2]
[333690735,1722359432483,-1256.19339315,0.00010715,2]
[333690736,1722359432492,-438.05424225,0.00010715,2]
[333690737,1722359432501,-155.0,0.00010715,2]
[333690738,1722359432511,-155.0,0.00010715,2]
[333690739,1722359432521,-293.35360617,0.00010715,2]
[333690740,1722359432530,-372.98,0.00010721,2]
[333690741,1722359432540,-1580.0,0.00010784,2]
[333690742,1722359432549,-493.721,0.00010784,2]
[333690743,1722359432559,-450.0,0.00010784,2]
[333690744,1722359432579,-829.172,0.00010784,2]
[333690745,1722359432592,-1555.72,0.00010784,2]
[333690746,1722359432603,-349.0,0.00010784,2]
[333690747,1722359432612,-1201.0,0.00010784,2]
[333690748,1722359432622,-248.809,0.00010784,2]
[333690749,1722359432632,-5125.0,0.00010784,2]
[333690750,1722359432643,-1668.0,0.00010784,2]
[333690751,1722359432653,-1972.82274065,0.00010784,2]
[333690752,1722359432666,-283.21327208,0.00010784,2]
[333690753,1722359432686,-576.41012845,0.00010784,2]
[333690754,1722359432700,-3378.75833065,0.00010784,2]
[333690755,1722359432712,-32176.79552817,0.00010784,2]
[333690756,1722359432721,-5833.0,0.00010784,2]
[333690757,1722359432732,-858.4249,0.0001079,2]
[333690758,1722359432741,-29717.9276,0.000109,2]
[333690759,1722359432751,-1436.0177225,0.000109,2]
[333690760,1722359432760,-200.0,0.00010959,2]
[333690761,1722359432770,-150.0,0.00010986,2]
[333690762,1722359432779,-1404.00481533,0.00010999,2]
[333690763,1722359432788,-977704.26334044,0.00011,2]
[333690775,1722359438462,-317.014,0.00010784,2]
[333690776,1722359438471,-16837.07618915,0.00011,2]
[333690777,1722359438482,-450.95372915,0.00011,2]
[333690778,1722359438493,-12533.24316673,0.00011,2]
[333690779,1722359438504,-2348.40046312,0.00011,2]
[333690780,1722359438515,-1004.1745623,0.00011,2]
[333690781,1722359438580,-409.54078089,0.00011,2]
[333690782,1722359438591,-6500.0,0.00011,2]
[333690783,1722359438691,-646.74403904,0.00011,2]
[333690784,1722359438756,-843.27,0.00011,2]
[333690785,1722359438767,-1665.638975,0.00011,2]
[333690793,1722359440643,-1213.13686397,0.00011,2]
[333690794,1722359440655,-354.33584849,0.00011,2]
[333690795,1722359440665,-6618.563923,0.00011,2]
[333690796,1722359440676,-4207.9876383,0.00011,2]
[333690797,1722359440687,-2123.07399969,0.00011,2]
[333690798,1722359440698,-6786.0,0.00011,2]
[333690799,1722359440708,-12435.96207127,0.00011,2]
[333690800,1722359440719,-1214.79818361,0.00011,2]
[333690801,1722359440730,-10828.216,0.00011,2]
[333690802,1722359440752,-466.38107,0.00011,2]
[333690804,1722359440768,-22898.52215549,0.00011,2]
[333690806,1722359440782,-871.08096192,0.00011,2]
[333690807,1722359440793,-1950.27975375,0.00011,2]
[333690808,1722359440805,-531.2423039,0.00011,2]
[333690809,1722359440816,-521.31889551,0.00011,2]
[333690810,1722359440827,-7627.54303608,0.00011,2]
[333690811,1722359440839,-6195.30092757,0.00011,2]
[333690812,1722359440850,-4478.44625082,0.00011,2]
[333690813,1722359440861,-10625.59365678,0.00011,2]
[333690814,1722359440881,-323.19502115,0.00011,2]
[333690815,1722359440896,-687.06,0.00011,2]
[333690816,1722359440905,-335.545,0.00011,2]
[333690817,1722359440915,-70221.4593788,0.00011,2]
[333690818,1722359440924,-3060.6652086,0.00011,2]
[333690833,1722359443017,-68166.51069546,0.00011,2]
[333690834,1722359443029,-521187.0269123,0.00011,2]
[333690835,1722359443073,-18050.36572846,0.00011,2]
[333690836,1722359443085,-958.26684764,0.00011,2]
[333690837,1722359443131,-2796.88342727,0.00011,2]
[333690838,1722359443142,-31576.8,0.00011,2]
[333690839,1722359443153,-17220.49887899,0.00011,2]
[333690840,1722359443190,-1016.18242901,0.00011,2]
[333690841,1722359443247,-4404.33063086,0.00011,2]
[333690842,1722359443258,-301.25385499,0.00011,2]
[333690843,1722359443269,-1745.585,0.00011,2]
[333690844,1722359443311,-2499.6238,0.00011,2]
[333690845,1722359443323,-1997.19165993,0.00011,2]
[333690846,1722359443337,-1243.700005,0.00011,2]
[333690859,1722359448445,-769.67,0.00011,2]
[333690860,1722359448551,-4025.0453594,0.00011,2]
[333690861,1722359448564,-299.293893,0.00011,2]
[333690862,1722359448610,-4116.0002468,0.00011,2]
[333690863,1722359448667,-450.0,0.00011,2]
[333690864,1722359448679,-308.44103876,0.00011,2]
[333690865,1722359448691,-1610.71507931,0.00011,2]
[333690866,1722359448752,-817.32850703,0.00011,2]
[333690867,1722359448764,-571.94053383,0.00011,2]
[333690868,1722359448775,-723.31874969,0.00011,2]
[333690869,1722359448790,-36056.0,0.00011,2]
[333692069,1722359554540,371.22,8.547e-05,2]
[333692070,1722359598801,500.0,8.479e-05,2]
[333692071,1722359605663,50000.0,0.00025,60]
[333692072,1722359617540,50000.0,0.00025,60]
[333692087,1722360029322,-399.0,0.0001787,30]
[333692088,1722360029344,-399.0,0.0001787,30]
[333692089,1722360029374,-399.0,0.0001788,30]
[333692090,1722360029397,-399.0,0.0001788,30]
[333692091,1722360029420,-399.0,0.0001788,30]
[333692092,1722360029600,-405.98,0.0001788,30]
[333692093,1722360029628,-399.0,0.0001789,30]
[333692094,1722360029651,-399.0,0.0001789,30]
[333692095,1722360029674,-399.0,0.0001789,30]
[333692096,1722360029697,-399.0,0.0001789,30]
[333692097,1722360029724,-783.99741777,0.00019178,30]
[333692098,1722360029750,-783.99741777,0.0001926,30]
[333692099,1722360029779,-783.99741777,0.00019342,30]
[333692100,1722360029805,-783.99741777,0.00019425,30]
[333692101,1722360029831,-783.99741777,0.00019507,30]
[333692102,1722360029854,-783.99741777,0.00019589,30]
[333692103,1722360029886,-783.99741777,0.00019671,30]
[333692104,1722360029910,-783.99741777,0.00019753,30]
[333692105,1722360029934,-783.99741777,0.00019836,30]
[333692106,1722360029959,-783.99741777,0.00019918,30]
[333692107,1722360029986,-783.99741777,0.0002,30]
[333692108,1722360030011,-783.99741777,0.00020082,30]
[333692109,1722360030034,-783.99741777,0.00020137,30]
[333692110,1722360030057,-783.99741777,0.00020219,30]
[333692111,1722360030081,-783.99741777,0.00020301,30]
[333692112,1722360030129,-419.91462707,0.00022,30]
[333692113,1722360030165,-1800.0,0.00024,30]
[333692114,1722360030209,-200.0,0.00025,30]
[333692115,1722360030232,-1900.0,0.00025,30]
[333692116,1722360030255,-3000.0,0.00025,40]
[333692117,1722360030278,-250.0,0.00025,30]
[333692118,1722360030300,-259.42016782,0.00025,30]
[333692119,1722360030324,-40000.0,0.00025,30]
[333692120,1722360030347,-552.21768113,0.00025,50]
[333692121,1722360030384,-1208.0,0.00026194,30]
[333692122,1722360030412,-664.70525645,0.00026901,30]
[333692123,1722360030436,-6690.0,0.00027,60]
[333692124,1722360030462,-294.69833343,0.0002739,30]
[333692125,1722360030485,-200.0,0.00027397,60]
[333692126,1722360030509,-4000.0,0.00027397,30]
[333692127,1722360030533,-212.0,0.0002841,30]
[333692128,1722360030557,-3600.0,0.00029,30]
[333692129,1722360030582,-400.59172814,0.00029567,120]
[333692130,1722360030606,-400.0,0.00029874,31]
[333692131,1722360030632,-672.20914547,0.00029999,120]
[333692132,1722360030657,-50000.0,0.0003,30]
[333692133,1722360030682,-385.97625538,0.0003,30]
[333692134,1722360030705,-151.0,0.0003,120]
[333692135,1722360030728,-191.97777778,0.0003,120]
[333692136,1722360030754,-3600.0,0.0003,31]
[333692137,1722360030777,-200.0,0.0003,60]
[333692138,1722360030800,-160.0,0.0003,30]
[333692139,1722360030824,-1393.60679461,0.0003,120]
[333692140,1722360030847,-2000.0,0.0003,120]
[333692141,1722360030871,-1000.0,0.0003,30]
[333692142,1722360030894,-321.0,0.0003,60]
[333692143,1722360030918,-212.0,0.0003012,30]
[333692144,1722360030941,-200.0,0.00030137,60]
[333692145,1722360030964,-388.0,0.00030466,120]
[333692146,1722360030987,-388.0,0.00030548,120]
[333692147,1722360031011,-388.0,0.00030575,120]
[333692148,1722360031033,-548.0,0.00030613,30]
[333692149,1722360031056,-388.0,0.0003063,120]
[333692150,1722360031080,-388.0,0.00030658,120]
[333692151,1722360031104,-250.0,0.000308,30]
[333692152,1722360031133,-388.0,0.00030822,120]
[333692153,1722360031159,-191.97777778,0.00030849,120]
[333692154,1722360031187,-50000.0,0.00031,31]
[333692155,1722360031211,-3600.0,0.00031,32]
[333692156,1722360031236,-400.59172813,0.0003121,120]
[333692157,1722360031259,-825.18833867,0.000314,30]
[333692158,1722360031283,-228.18,0.00031507,120]
[333692159,1722360031306,-151.0,0.00031534,120]
[333692160,1722360031330,-150.0,0.00031537,120]
[333692161,1722360031353,-150.0,0.00031576,120]
[333692162,1722360031380,-172.63,0.00031644,91]
[333692163,1722360031539,-191.97777778,0.00031699,120]
[333692164,1722360031562,-1811.0,0.000317,120]
[333692165,1722360031585,-212.0,0.0003183,30]
[333692166,1722360031608,-150.0,0.00031885,120]
[333692167,1722360031638,-50000.0,0.00032,32]
[333692168,1722360031661,-2000.0,0.00032,30]
[333692169,1722360031684,-1146.02457934,0.00032,120]
[333692170,1722360031707,-2000.0,0.00032,120]
[333692171,1722360031730,-3600.0,0.00032,33]
[333692172,1722360031759,-150.0,0.00032076,120]
[333692173,1722360031783,-150.0,0.00032322,120]
[333692174,1722360031807,-191.97777778,0.00032548,120]
[333692175,1722360031835,-2991.0,0.000327,35]
[333692176,1722360031858,-10063.93959593,0.00032815,30]
[333692177,1722360031883,-400.59172813,0.00032853,120]
[333692178,1722360031907,-1000.0,0.00032876,30]
[333692179,1722360031930,-1000.0,0.00032876,30]
[333692180,1722360031953,-1000.0,0.00032876,30]
[333692181,1722360031976,-1000.0,0.00032876,30]
[333692182,1722360032000,-1000.0,0.00032876,30]
[333692183,1722360032023,-1000.0,0.00032876,30]
[333692184,1722360032047,-152.04583768,0.00032876,30]
[333692185,1722360032070,-1000.0,0.00032876,30]
[333692186,1722360032094,-1000.0,0.00032876,30]
[333692187,1722360032121,-1000.0,0.00032876,30]
[333692188,1722360032146,-1000.0,0.00032876,30]
[333692189,1722360032169,-1000.0,0.00032876,30]
[333692190,1722360032192,-1000.0,0.00032876,30]
[333692191,1722360032217,-1000.0,0.00032876,30]
[333692192,1722360032240,-1000.0,0.00032876,30]
[333692193,1722360032263,-1000.0,0.00032876,30]
[333692194,1722360032288,-1000.0,0.00032876,30]
[333692195,1722360032312,-1000.0,0.00032876,30]
[333692196,1722360032337,-1000.0,0.00032876,30]
[333692197,1722360032360,-1000.0,0.00032876,30]
[333692198,1722360032389,-1000.0,0.00032876,30]
[333692199,1722360032415,-1000.0,0.00032876,30]
[333692200,1722360032439,-291.34139191,0.00032876,30]
[333692201,1722360032463,-500.0,0.00032876,30]
[333692202,1722360032499,-500.0,0.00032876,30]
[333692203,1722360032536,-2607.58,0.00032876,120]
[333692204,1722360032576,-2607.58,0.00032876,120]
[333692205,1722360032611,-2607.58,0.00032876,120]
[333692206,1722360032652,-2607.58,0.00032876,120]
[333692207,1722360032687,-2607.58,0.00032876,120]
[333692208,1722360032728,-2607.58,0.00032876,120]
[333692209,1722360032762,-2607.58,0.00032876,120]
[333692210,1722360032800,-2607.58,0.00032876,120]
[333692211,1722360032840,-2607.58,0.00032876,120]
[333692212,1722360032875,-2607.58,0.00032876,120]
[333692213,1722360032912,-2607.58,0.00032876,120]
[333692214,1722360032945,-2607.58,0.00032876,120]
[333692215,1722360032979,-2607.58,0.00032876,120]
[333692216,1722360033012,-2607.58,0.00032876,120]
[333692217,1722360033045,-2607.58,0.00032876,120]
[333692218,1722360033079,-2607.58,0.00032876,120]
[333692219,1722360033116,-2607.58,0.00032876,120]
[333692220,1722360033151,-2607.58,0.00032876,120]
[333692221,1722360033186,-2607.58,0.00032876,120]
[333692222,1722360033221,-2607.58,0.00032876,120]
[333692223,1722360033257,-2607.58,0.00032876,120]
[333692224,1722360033291,-2607.58,0.00032876,120]
[333692225,1722360033326,-2607.58,0.00032876,120]
[333692226,1722360033361,-2607.78975713,0.00032876,120]
[333692227,1722360033397,-200.0,0.00032877,60]
[333692228,1722360033434,-219.81775584,0.000329,30]
[333692229,1722360033469,-17238.09851641,0.000329,30]
[333692230,1722360033556,-50000.0,0.00033,33]
[333692231,1722360033592,-2000.0,0.00033,30]
[333692232,1722360033632,-2000.0,0.00033,30]
[333692233,1722360033668,-613.87361765,0.00033,60]
[333692234,1722360033703,-3600.0,0.00033,34]
[333692235,1722360033739,-151.0,0.00033068,120]
[333692236,1722360033777,-4478.3,0.00033151,120]
[333692237,1722360033808,-551.75,0.00033151,120]
[333692238,1722360033833,-300.25,0.00033205,120]
[333692239,1722360034104,-191.97777778,0.00033397,120]
[333692240,1722360034158,-212.0,0.0003354,30]
[333692241,1722360034183,-768.0,0.00033674,30]
[333692242,1722360034214,-50000.0,0.00034,34]
[333692243,1722360034239,-3000.0,0.00034,120]
[333692244,1722360034263,-3600.0,0.00034,35]
[333692245,1722360034287,-65083.78367255,0.00034148,119]
[333692246,1722360034312,-2000.0,0.000342,120]
[333692247,1722360034337,-191.97777778,0.00034247,120]
[333692248,1722360034362,-400.59172813,0.00034495,120]
[333692249,1722360034391,-150.0,0.00034514,120]
[333692250,1722360034417,-400.0,0.00034567,31]
[333692251,1722360034441,-151.0,0.00034603,120]
[333692252,1722360034465,-1291.366489,0.000348,30]
[333692253,1722360034491,-150.0,0.00034937,120]
[333692254,1722360034519,-50000.0,0.00035,35]
[333692255,1722360034545,-2333.42861088,0.00035,30]
[333692256,1722360034570,-1453.61339218,0.00035,30]
[333692257,1722360034596,-150.43574671,0.00035,120]
[333692258,1722360034622,-2948.95883395,0.00035,30]
[333692259,1722360034646,-244.67764126,0.00035,30]
[333692260,1722360034670,-2329.94557318,0.00035,30]
[333692261,1722360034695,-3626.61641063,0.00035,30]
[333692262,1722360034722,-70841.6783396,0.00035,30]
[333692263,1722360034752,-369333.76533003,0.00035,30]
[333692264,1722360034778,-7473.07199538,0.00035,30]
[333692265,1722360034805,-1829.16157628,0.00035,30]
[333692266,1722360034830,-488.04100853,0.00035,30]
[333692267,1722360034856,-53709.74958664,0.00035,30]
[333692268,1722360034884,-250.0,0.00035,90]
[333692269,1722360034910,-3003.0,0.00035,60]
[333692270,1722360034935,-308.34879181,0.00035,30]
[333692271,1722360034960,-28852.156305,0.00035,30]
[333692272,1722360034986,-1625.88160287,0.00035,30]
[333692273,1722360035011,-1721.821986,0.00035,30]
[333692274,1722360035036,-811.13223652,0.00035,90]
[333692275,1722360035061,-559.78196835,0.00035,30]
[333692276,1722360035086,-191.97777778,0.00035096,120]
[333692277,1722360035109,-212.0,0.0003525,30]
[333692278,1722360035137,-2152.277482,0.000355,30]
[333692279,1722360035162,-2582.732979,0.000356,30]
[333692280,1722360035186,-200.0,0.00035616,60]
[333692281,1722360035211,-2582.732979,0.000357,30]
[333692282,1722360035237,-3013.188476,0.000358,30]
[333692283,1722360035261,-2582.732979,0.0003582,30]
[333692284,1722360035288,-191.97777778,0.00035945,120]
[333692285,1722360035317,-50000.0,0.00036,36]
[333692286,1722360035343,-2000.0,0.00036,120]
[333692287,1722360035375,-2000.0,0.00036,120]
[333692288,1722360035400,-1464.00630027,0.00036,120]
[333692289,1722360035427,-3290.1,0.00036114,54]
[333692290,1722360035451,-151.0,0.00036137,120]
[333692291,1722360035476,-400.59172813,0.00036138,120]
[333692292,1722360035502,-150.0,0.00036497,120]
[333692293,1722360035527,-150.0,0.00036667,120]
[333692294,1722360035552,-191.97777778,0.00036795,120]
[333692295,1722360035576,-212.0,0.0003696,30]
[333692296,1722360035604,-50000.0,0.00037,37]
[333692297,1722360035633,-307.06583539,0.00037,30]
[333692298,1722360035657,-853.0,0.00037042,30]
[333692299,1722360035682,-150.0,0.00037113,120]
[333692300,1722360035707,-150.0,0.00037364,120]
[333692301,1722360035731,-393.11701252,0.000375,30]
[333692302,1722360035758,-191.97777778,0.00037644,120]
[333692303,1722360035782,-151.0,0.00037671,120]
[333692304,1722360035806,-150.0,0.00037774,120]
[333692305,1722360035832,-216.67484283,0.00037999,120]
[333692306,1722360035858,-50000.0,0.00038,38]
[333692307,1722360035886,-2000.0,0.00038,60]
[333692308,1722360035910,-2000.0,0.00038,120]
[333692309,1722360035966,-614.875204,0.00038,30]
[333692310,1722360035990,-2000.0,0.00038,120]
[333692311,1722360036015,-958.16797371,0.00038,90]
[333692312,1722360036039,-307.50162976,0.00038,30]
[333692313,1722360036065,-1300.0,0.00038,120]
[333692314,1722360036090,-799999.0,0.00038,30]
[333692315,1722360036115,-815.15052773,0.00038,120]
[333692316,1722360036142,-2000.0,0.00038,30]
[333692317,1722360036167,-150.00000001,0.00038193,120]
[333692318,1722360036321,-202.00632406,0.000382,120]
[333692319,1722360036348,-200.0,0.00038356,60]
[333692320,1722360036376,-150.0,0.00038399,120]
[333692321,1722360036403,-150.0,0.00038418,120]
[333692322,1722360036429,-150.0,0.00038463,120]
[333692323,1722360036454,-191.97777778,0.00038493,120]
[333692324,1722360036479,-212.0,0.0003867,30]
[333692325,1722360036505,-656.04967947,0.000387,120]
[333692326,1722360036531,-150.0,0.00038736,120]
[333692327,1722360036556,-150.0,0.00038945,120]
[333692328,1722360036583,-50000.0,0.00039,39]
[333692329,1722360036608,-500.0,0.00039,120]
[333692330,1722360036636,-1458.18772638,0.00039,30]
[333692331,1722360036661,-1149.0,0.00039,120]
[333692332,1722360036687,-1000.0,0.00039,120]
[333692333,1722360036712,-1000.0,0.00039,120]
[333692334,1722360036737,-1071.04047787,0.00039,120]
[333692335,1722360036766,-2741.08734502,0.00039,120]
[333692336,1722360036791,-2526.77267656,0.00039,30]
[333692337,1722360036816,-1000000.0,0.00039,30]
[333692338,1722360036843,-151.0,0.00039205,120]
[333692339,1722360036869,-205.02171681,0.00039281,60]
[333692340,1722360036894,-191.97777778,0.00039342,120]
[333692341,1722360036919,-569.47801133,0.000394,30]
[333692342,1722360036944,-1008.0,0.000395,30]
[333692343,1722360036968,-312.24940611,0.000395,30]
[333692344,1722360036994,-150.0,0.00039518,120]
[333692345,1722360037019,-3589.2,0.00039529,74]
[333692346,1722360037045,-150.0,0.00039551,120]
[333692347,1722360037071,-150.0,0.00039562,120]
[333692348,1722360037097,-400.0,0.00039748,31]
[333692349,1722360037122,-151.10219036,0.000398,120]
[333692350,1722360037147,-500.0,0.00039863,120]
[333692351,1722360037172,-2234.3458532,0.000399,120]
[333692352,1722360037196,-8123.84128586,0.000399,60]
[333692353,1722360037223,-150.0,0.00039905,120]
[333692354,1722360037250,-197047.29107469,0.0003999,60]
[333692355,1722360037274,-250.0,0.00039999,30]
[333692356,1722360037302,-50000.0,0.0004,30]
[333692357,1722360037329,-50000.0,0.0004,40]
[333692358,1722360037355,-45718.71559142,0.0004,30]
[333692359,1722360037386,-150.24152509,0.0004,120]
[333692360,1722360037411,-200.0,0.0004,120]
[333692361,1722360037435,-2493.24059052,0.0004,120]
[333692362,1722360037460,-2012.0,0.0004,120]
[333692363,1722360037485,-3000.0,0.0004,30]
[333692364,1722360037511,-1000000.0,0.0004,40]
[333692365,1722360037535,-477.12749073,0.0004,30]
[333692366,1722360037559,-2927.04620649,0.0004,30]
[333692367,1722360037582,-585.21207711,0.0004,120]
[333692368,1722360037606,-1483.5372581,0.0004,30]
[333692369,1722360037634,-454.19780765,0.0004,30]
[333692370,1722360037658,-512.36952663,0.0004,45]
[333692371,1722360037682,-701.33041932,0.0004,30]
[333692372,1722360037705,-542.57481231,0.0004,30]
[333692373,1722360037728,-171.55863785,0.0004,120]
[333692374,1722360037753,-3398.77472778,0.0004,120]
[333692375,1722360037778,-2000.0,0.0004,120]
[333692376,1722360037801,-1123.55665292,0.0004,120]
[333692377,1722360037825,-558.0,0.0004,120]
[333692378,1722360037849,-1300.0,0.0004,120]
[333692379,1722360037875,-2000.0,0.0004,32]
[333692380,1722360037899,-931.0,0.0004,60]
[333692381,1722360037923,-2000.0,0.0004,80]
[333692382,1722360037945,-1018.51933202,0.0004,120]
[333692383,1722360037968,-250.0,0.0004,120]
[333692384,1722360037991,-2000.0,0.0004,75]
[333692385,1722360038014,-250.0,0.0004,120]
[333692386,1722360038038,-2000.0,0.0004,120]
[333692387,1722360038063,-222.2937197,0.0004,120]
[333692388,1722360038087,-100000.0,0.0004,30]
[333692389,1722360038111,-10144.04977133,0.0004,30]
[333692390,1722360038137,-7676.88,0.0004,120]
[333692391,1722360038160,-815.15052773,0.0004,120]
[333692392,1722360038183,-424.851658,0.0004,30]
[333692393,1722360038205,-150.0,0.0004,60]
[333692394,1722360038229,-150.0,0.00040013,120]
[333692395,1722360038253,-888.28305906,0.00040131,30]
[333692396,1722360038278,-191.97777778,0.00040192,120]
[333692397,1722360038304,-481.86321399,0.0004025,120]
[333692398,1722360038328,-212.0,0.0004038,30]
[333692399,1722360038351,-217.0,0.0004038,30]
[333692400,1722360038377,-150.0,0.00040471,120]
[333692401,1722360038400,-3000.0,0.000405,30]
[333692402,1722360038423,-772.76402168,0.000405,120]
[333692403,1722360038447,-151.0,0.0004074,120]
[333692404,1722360038470,-94060.84588154,0.000409,120]
[333692405,1722360038493,-1966.72809372,0.000409,120]
[333692406,1722360038519,-50000.0,0.00041,31]
[333692407,1722360038546,-50000.0,0.00041,41]
[333692408,1722360038569,-204.5672831,0.00041,120]
[333692409,1722360038593,-56227.37635765,0.00041,30]
[333692410,1722360044459,-270.41,0.0003675,30]
[333692411,1722360044494,-877600.50719907,0.00041,30]
[333692412,1722360044519,-3000.0,0.00041,30]
[333692413,1722360044543,-1028.969797,0.00041,120]
[333692414,1722360044567,-265.91935794,0.00041,120]
[333692415,1722360044593,-2000.0,0.00041,36]
[333692416,1722360044618,-150.0,0.00041,70]
[333692417,1722360044648,-8029.71564514,0.00041,120]
[333692418,1722360044674,-191.97777778,0.00041041,120]
[333692419,1722360044700,-1314.2042357,0.00041044,120]
[333692420,1722360044726,-200.0,0.00041096,60]
[333692421,1722360044755,-173.93,0.00041123,30]
[333692422,1722360044784,-150.0,0.00041129,120]
[333692423,1722360044813,-1337.37557736,0.0004118,120]
[333692424,1722360044840,-150.0,0.00041245,30]
[333692425,1722360044864,-1000.0,0.000413,30]
[333692426,1722360044893,-120000.0,0.000413,120]
[333692427,1722360044919,-150.0,0.000414,120]
[333692428,1722360044943,-3000.0,0.000415,30]
[333692429,1722360044968,-335.59684338,0.000415,120]
[333692430,1722360044991,-1000.0,0.000416,30]
[333692431,1722360045015,-1000.0,0.00041608,30]
[333692432,1722360045038,-800.0,0.00041608,30]
[333692433,1722360045062,-1700.0,0.00041608,30]
[333692434,1722360045086,-7100.0,0.00041608,30]
[333692435,1722360045110,-8600.0,0.00041608,30]
[333692436,1722360045137,-150.0,0.0004161,30]
[333692437,1722360045162,-200000.00000544,0.0004188,30]
[333692438,1722360045186,-191.97777778,0.0004189,120]
[333692439,1722360045211,-1000.0,0.000419,30]
[333692440,1722360045237,-150.0,0.00041975,30]
[333692441,1722360045263,-1000.0,0.00041999,120]
[333692442,1722360045293,-50000.0,0.00042,32]
[333692443,1722360045322,-50000.0,0.00042,42]
[333692444,1722360045348,-3000.0,0.00042,30]
[333692445,1722360045377,-1000000.0,0.00042,60]